bitfinex/quotes_BTCUSD_20240620
["timestamp","ask_amount","ask_price","bid_price","bid_amount"]
[1718848109416,0.00954517,65278.0,65276.0,0.08028172]
[1718848110865,0.00954517,65278.0,65276.0,0.07628172]
[1718848111097,0.00954517,65278.0,65274.0,0.172071]
[1718848111098,0.76599,65275.0,65274.0,0.009471]
[1718848111311,0.77553517,65275.0,65274.0,0.009471]
[1718848112629,0.78253517,65275.0,65274.0,0.009471]
[1718848113043,0.77299,65275.0,65274.0,0.009471]
[1718848113854,0.76599,65275.0,65274.0,0.009471]
[1718848114069,0.77703,65275.0,65274.0,0.009471]
[1718848114221,0.78503,65275.0,65274.0,0.009471]
[1718848114602,0.78203,65275.0,65274.0,0.009471]
[1718848114804,0.77703,65275.0,65274.0,0.009471]
[1718848115108,0.78103,65275.0,65274.0,0.009471]
[1718848118159,0.78003,65275.0,65274.0,0.009471]
[1718848118400,0.77703,65275.0,65274.0,0.009471]
[1718848118605,0.78103,65275.0,65274.0,0.009471]
[1718848120119,0.79057839,65275.0,65274.0,0.009471]
[1718848121311,0.77953839,65275.0,65274.0,0.009471]
[1718848122113,0.77953855,65275.0,65274.0,0.009471]
[1718848122312,1.08593455,65275.0,65274.0,0.009471]
[1718848122731,1.08593455,65275.0,65274.0,0.00939106]
[1718848123134,1.076386,65275.0,65274.0,0.00939106]
[1718848123336,1.087426,65275.0,65274.0,0.00939106]
[1718848124000,1.23998712,65275.0,65274.0,0.00939106]
[1718848124207,1.54428712,65275.0,65274.0,0.00939106]
[1718848125305,1.52428712,65275.0,65274.0,0.00939106]
[1718848125565,1.54428712,65275.0,65274.0,0.00939106]
[1718848126770,1.52428712,65275.0,65274.0,0.00939106]
[1718848126887,1.54428712,65275.0,65274.0,0.00939106]
[1718848127296,1.64428712,65275.0,65274.0,0.00939106]
[1718848128259,2.97554212,65275.0,65274.0,0.00939106]
[1718848128471,3.00599267,65275.0,65274.0,0.00939106]
[1718848128629,2.68768567,65275.0,65274.0,0.00939106]
[1718848128859,2.47333867,65275.0,65274.0,0.00939106]
[1718848130039,2.28469267,65275.0,65274.0,0.00939106]
[1718848130247,2.13003367,65275.0,65274.0,0.00939106]
[1718848131426,1.98113367,65275.0,65274.0,0.00939106]
[1718848133545,2.13368781,65275.0,65274.0,0.00939106]
[1718848133871,1.98113367,65275.0,65274.0,0.00939106]
[1718848134642,3.27559267,65275.0,65274.0,0.00939106]
[1718848134868,2.81118067,65275.0,65274.0,0.00939106]
[1718848135560,2.52686067,65275.0,65274.0,0.00939106]
[1718848135715,2.13003367,65275.0,65274.0,0.00939106]
[1718848136096,2.23811567,65275.0,65274.0,0.00939106]
[1718848136323,2.13003367,65275.0,65274.0,0.00939106]
[1718848137303,1.82363767,65275.0,65274.0,0.00939106]
[1718848137663,1.67473767,65275.0,65274.0,0.00939106]
[1718848137855,1.64428712,65275.0,65274.0,0.00939106]
[1718848140269,1.49758712,65275.0,65274.0,0.00939106]
[1718848140491,1.51758712,65275.0,65274.0,0.00939106]
[1718848142296,1.35998712,65275.0,65274.0,0.00939106]
[1718848142498,1.03359112,65275.0,65274.0,0.00939106]
[1718848142748,0.574634,65275.0,65274.0,0.00939106]
[1718848142898,0.88103,65275.0,65274.0,0.00939106]
[1718848143990,1.33998712,65275.0,65274.0,0.00939106]
[1718848144195,1.63638712,65275.0,65274.0,0.00939106]
[1718848144404,1.65638712,65275.0,65274.0,0.00939106]
[1718848144635,1.63638712,65275.0,65274.0,0.00939106]
[1718848144836,1.69598712,65275.0,65274.0,0.00939106]
[1718848145036,1.03359112,65275.0,65274.0,0.00939106]
[1718848145239,1.09319112,65275.0,65274.0,0.00939106]
[1718848145450,0.88103,65275.0,65274.0,0.00939106]
[1718848145656,0.574634,65275.0,65274.0,0.00939106]
[1718848146067,0.88103,65275.0,65274.0,0.00939106]
[1718848150236,0.563594,65275.0,65274.0,0.00939106]
[1718848151525,0.104,65275.0,65274.0,0.00939106]
[1718848151729,0.104,65275.0,65274.0,0.30979106]
[1718848151923,0.004,65275.0,65274.0,0.30979106]
[1718848152079,0.104,65275.0,65274.0,0.30979106]
[1718848153094,0.004,65275.0,65274.0,0.30979106]
[1718848153515,0.01504,65275.0,65274.0,0.30979106]
[1718848156061,0.01404,65275.0,65274.0,0.30979106]
[1718848156468,0.01404,65275.0,65274.0,0.31279106]
[1718848156999,0.473634,65275.0,65274.0,0.01239106]
[1718848157172,0.87703,65275.0,65274.0,0.01239106]
[1718848157509,0.87703,65275.0,65274.0,0.01339106]
[1718848157710,0.87703,65275.0,65274.0,0.01039106]
[1718848158037,0.87703,65275.0,65274.0,0.00939106]
[1718848158301,0.88103,65275.0,65274.0,0.00939106]
[1718848158705,0.87803,65275.0,65274.0,0.00939106]
[1718848159087,0.88503,65275.0,65274.0,0.00939106]
[1718848159406,1.62208712,65275.0,65274.0,0.00939106]
[1718848159664,1.62108712,65275.0,65274.0,0.00939106]
[1718848159831,1.49748712,65275.0,65274.0,0.00939106]
[1718848160067,1.34698712,65275.0,65274.0,0.00939106]
[1718848160659,1.33598712,65275.0,65274.0,0.00939106]
[1718848160901,1.33698712,65275.0,65274.0,0.00939106]
[1718848161107,1.03359112,65275.0,65274.0,0.00939106]
[1718848161311,0.11504,65275.0,65274.0,0.00939106]
[1718848161520,0.11104,65275.0,65274.0,0.00939106]
[1718848161941,0.01804,65275.0,65274.0,0.31309106]
[1718848162169,0.11804,65275.0,65274.0,0.31309106]
[1718848162580,0.11104,65275.0,65274.0,0.31309106]
[1718848162961,0.11604,65275.0,65274.0,0.31309106]
[1718848163161,0.01604,65275.0,65274.0,0.31309106]
[1718848163606,0.08514182,65281.0,65274.0,0.31309106]
[1718848163786,0.23832582,65281.0,65274.0,0.31609106]
[1718848164140,0.23832582,65281.0,65274.0,0.31709106]
[1718848164340,0.23832582,65281.0,65274.0,0.31609106]
[1718848164547,0.23832582,65281.0,65274.0,0.31309106]
[1718848164964,0.23832582,65281.0,65274.0,0.31609106]
[1718848165164,0.08914182,65281.0,65274.0,0.31609106]
[1718848165341,0.08914182,65281.0,65274.0,0.31309106]
[1718848165552,0.10999195,65281.0,65274.0,0.31309106]
[1718848165758,0.1,65280.0,65274.0,0.31309106]
[1718848166156,0.12185013,65281.0,65274.0,0.31309106]
[1718848166560,0.12185013,65281.0,65274.0,0.52589106]
[1718848166782,0.12185013,65281.0,65274.0,0.00939106]
[1718848166783,0.0596,65276.0,65274.0,0.00939106]
[1718848166971,0.153198,65275.0,65274.0,0.00939106]
[1718848168263,0.164198,65275.0,65274.0,0.00939106]
[1718848168516,0.153198,65275.0,65274.0,0.00939106]
[1718848169136,0.157198,65275.0,65274.0,0.00939106]
[1718848169585,0.004,65275.0,65274.0,0.29899106]
[1718848169789,0.006,65275.0,65274.0,0.29899106]
[1718848169991,0.006,65275.0,65274.0,0.53179106]
[1718848170176,0.006,65275.0,65274.0,0.86119106]
[1718848170353,0.004,65275.0,65274.0,0.86119106]
[1718848170752,0.006,65275.0,65274.0,0.86119106]
[1718848171168,0.004,65275.0,65274.0,0.86119106]
[1718848171524,0.00086,65281.0,65277.0,0.153191]
[1718848171670,0.001,65275.0,65274.0,0.80459106]
[1718848172038,0.005,65275.0,65274.0,0.80459106]
[1718848172258,0.001,65275.0,65274.0,0.78459106]
[1718848172665,0.001,65275.0,65274.0,0.78859106]
[1718848172880,0.002,65275.0,65274.0,0.78859106]
[1718848173174,0.001,65275.0,65274.0,0.78559106]
[1718848173368,0.002,65275.0,65274.0,0.78859106]
[1718848175074,0.002,65275.0,65274.0,0.48219106]
[1718848175291,0.002,65275.0,65274.0,0.32899106]
[1718848175491,0.002,65275.0,65274.0,0.30599106]
[1718848176049,0.002,65275.0,65274.0,0.01639106]
[1718848176628,0.001,65275.0,65274.0,0.01339106]
[1718848177008,0.001,65275.0,65274.0,0.01639106]
[1718848177416,0.001,65275.0,65274.0,0.01339106]
[1718848177624,0.001,65275.0,65274.0,0.00939106]
[1718848177827,0.153193,65278.0,65274.0,0.00939106]
[1718848178043,0.153193,65278.0,65274.0,0.01239106]
[1718848178248,0.153193,65278.0,65274.0,0.01639106]
[1718848178779,0.153193,65278.0,65274.0,0.01239106]
[1718848179397,0.153193,65277.0,65274.0,0.00939106]
[1718848179595,0.153193,65277.0,65274.0,0.01239106]
[1718848179904,0.306382,65278.0,65274.0,0.00939106]
[1718848180109,1.05329,65275.0,65274.0,0.00939106]
[1718848180315,1.31585112,65275.0,65274.0,0.00939106]
[1718848180488,1.44072374,65275.0,65274.0,0.00939106]
[1718848180659,1.32585112,65275.0,65274.0,0.01139106]
[1718848180860,1.63224712,65275.0,65274.0,0.01139106]
[1718848181300,1.63224712,65275.0,65274.0,0.00939106]
[1718848181610,1.64324712,65275.0,65274.0,0.00939106]
[1718848182785,1.65724712,65275.0,65274.0,0.00939106]
[1718848182986,1.64324712,65275.0,65274.0,0.00939106]
[1718848183390,1.65624712,65275.0,65274.0,0.00939106]
[1718848183915,1.64524712,65275.0,65274.0,0.00939106]
[1718848184758,1.65924712,65275.0,65274.0,0.00939106]
[1718848185177,1.64524712,65275.0,65274.0,0.00939106]
[1718848185557,1.65624712,65275.0,65274.0,0.00939106]
[1718848186150,1.63624712,65275.0,65274.0,0.00939106]
[1718848186582,1.65624712,65275.0,65274.0,0.00939106]
[1718848190838,1.6820412,65275.0,65274.0,0.00939106]
[1718848191417,1.7416412,65275.0,65274.0,0.00939106]
[1718848195445,1.6620412,65275.0,65274.0,0.00939106]
[1718848195647,1.7416412,65275.0,65274.0,0.00939106]
[1718848197211,0.91578408,65275.0,65274.0,0.00939106]
[1718848198199,1.0305914,65275.0,65274.0,0.00939106]
[1718848198421,0.91578408,65275.0,65274.0,0.00939106]
[1718848201706,0.14979408,65275.0,65274.0,0.16419106]
[1718848202267,0.14979408,65275.0,65274.0,0.28899106]
[1718848202436,0.04979408,65275.0,65274.0,0.28899106]
[1718848202644,0.03679408,65275.0,65274.0,0.28899106]
[1718848202840,0.18999208,65275.0,65274.0,0.28899106]
[1718848203044,0.20099208,65275.0,65274.0,0.28899106]
[1718848203736,1.2617412,65275.0,65274.0,0.00939106]
[1718848203863,1.3817412,65275.0,65274.0,0.00939106]
[1718848204061,1.3907412,65275.0,65274.0,0.00939106]
[1718848204710,1.6822412,65275.0,65274.0,0.00939106]
[1718848205151,1.7418412,65275.0,65274.0,0.00939106]
[1718848205315,1.7218412,65275.0,65274.0,0.00939106]
[1718848205520,1.7418412,65275.0,65274.0,0.00939106]
[1718848206123,1.7418412,65275.0,65270.0,0.20861535]
[1718848206124,0.02,65271.0,65270.0,0.20861535]
[1718848206309,1.30461012,65271.0,65270.0,0.20861535]
[1718848206515,1.40461012,65271.0,65270.0,0.20861535]
[1718848207410,1.40515012,65271.0,65270.0,0.20861535]
[1718848207619,1.41415012,65271.0,65270.0,0.20961535]
[1718848211848,1.33455012,65271.0,65270.0,0.20961535]
[1718848212050,1.39415012,65271.0,65270.0,0.20961535]
[1718848212254,1.41415012,65271.0,65270.0,0.20961535]
[1718848212676,1.39415012,65271.0,65270.0,0.20961535]
[1718848213908,1.41415012,65271.0,65270.0,0.20961535]
[1718848215741,3.12310487,65271.0,65270.0,0.09071171]
[1718848215951,3.12310487,65271.0,65270.0,0.00089539]
[1718848215952,3.25055897,65271.0,65270.0,0.00089539]
[1718848216155,0.02,65266.0,65265.0,0.00869719]
[1718848216357,0.02,65266.0,65255.0,0.1299]
[1718848216358,0.15323,65261.0,65255.0,0.1299]
[1718848216569,0.38539112,65261.0,65255.0,0.1299]
[1718848216772,1.40477412,65261.0,65255.0,0.1299]
[1718848217500,1.32517412,65261.0,65256.0,0.07628172]
[1718848217647,1.38477412,65261.0,65256.0,0.07628172]
[1718848217849,1.38775412,65261.0,65256.0,0.07628172]
[1718848218078,1.41075412,65261.0,65256.0,0.07628172]
[1718848218279,1.39075412,65261.0,65256.0,0.07628172]
[1718848220767,1.33115412,65261.0,65256.0,0.07628172]
[1718848220971,0.565671,65261.0,65256.0,0.07628172]
[1718848221231,0.10598,65261.0,65260.0,0.27527662]
[1718848222828,0.00598,65261.0,65260.0,0.27527662]
[1718848223029,0.004,65261.0,65260.0,0.27527662]
[1718848224462,0.463691,65261.0,65260.0,7.662e-05]
[1718848224659,0.870152,65261.0,65260.0,7.662e-05]
[1718848225088,0.872132,65261.0,65260.0,7.662e-05]
[1718848225878,1.45163132,65261.0,65260.0,7.662e-05]
[1718848226186,1.73073132,65261.0,65260.0,7.662e-05]
[1718848226404,1.75073132,65261.0,65260.0,7.662e-05]
[1718848227187,1.74973132,65261.0,65260.0,7.662e-05]
[1718848227394,1.76373132,65261.0,65260.0,7.662e-05]
[1718848227790,1.76073132,65261.0,65260.0,7.662e-05]
[1718848227961,2.11680812,65261.0,65260.0,7.662e-05]
[1718848228209,2.14753846,65261.0,65260.0,7.662e-05]
[1718848228691,2.16153846,65261.0,65260.0,7.662e-05]
[1718848228864,1.99430846,65261.0,65260.0,7.662e-05]
[1718848229329,2.14753846,65261.0,65260.0,7.662e-05]
[1718848230309,1.45576446,65261.0,65260.0,7.662e-05]
[1718848230567,1.34115412,65261.0,65260.0,7.662e-05]
[1718848230816,1.46683512,65261.0,65260.0,7.662e-05]
[1718848231047,1.47283512,65261.0,65260.0,7.662e-05]
[1718848231477,1.45283512,65261.0,65260.0,7.662e-05]
[1718848231740,1.47283512,65261.0,65260.0,7.662e-05]
[1718848231970,1.48683512,65261.0,65260.0,7.662e-05]
[1718848232279,1.47283512,65261.0,65260.0,7.662e-05]
[1718848232436,2.03185026,65261.0,65260.0,7.662e-05]
[1718848232642,2.34321349,65261.0,65260.0,7.662e-05]
[1718848232905,2.48100052,65261.0,65260.0,7.662e-05]
[1718848233313,2.48100052,65261.0,65247.0,0.21707573]
[1718848233314,1.072827,65248.0,65247.0,0.21707573]
[1718848233515,1.63418812,65248.0,65247.0,0.21707573]
[1718848233722,2.70101286,65248.0,65247.0,0.21707573]
[1718848234125,2.68638286,65248.0,65247.0,0.21707573]
[1718848234559,2.69338286,65248.0,65247.0,0.21707573]
[1718848234986,3.352459,65248.0,65247.0,0.21707573]
[1718848235195,3.352459,65248.0,65247.0,0.14104546]
[1718848235196,3.95763611,65248.0,65247.0,0.14104546]
[1718848235400,3.95763611,65248.0,65247.0,0.06666843]
[1718848235401,3.97047611,65248.0,65247.0,0.06666843]
[1718848235631,3.83271813,65248.0,65247.0,0.06638892]
[1718848235806,3.83271813,65248.0,65232.0,0.009471]
[1718848235807,1.143075,65233.0,65232.0,0.009471]
[1718848236007,2.14322625,65233.0,65232.0,0.009471]
[1718848236206,2.21315574,65233.0,65232.0,0.009471]
[1718848236408,3.63683874,65233.0,65232.0,0.009471]
[1718848236626,3.40720974,65233.0,65232.0,0.009471]
[1718848236828,3.36013899,65233.0,65232.0,0.009471]
[1718848237252,3.35651202,65233.0,65232.0,0.009471]
[1718848237679,3.36251202,65233.0,65232.0,0.009471]
[1718848238229,3.37551202,65233.0,65232.0,0.009471]
[1718848238544,3.38951202,65233.0,65232.0,0.0070308]
[1718848238743,3.42951202,65233.0,65232.0,0.0070308]
[1718848239152,3.47684293,65233.0,65232.0,0.0070308]
[1718848239370,3.42951202,65233.0,65232.0,0.0070308]
[1718848239921,3.41551202,65233.0,65232.0,0.0070308]
[1718848240270,3.41651202,65233.0,65232.0,0.0070308]
[1718848240467,3.43051202,65233.0,65232.0,0.0070308]
[1718848240815,3.43051202,65233.0,65232.0,0.0020308]
[1718848241012,3.41384293,65233.0,65232.0,0.0020308]
[1718848241212,1.57471796,65233.0,65232.0,0.0020308]
[1718848241442,2.64084496,65233.0,65232.0,0.0020308]
[1718848241899,2.49912896,65233.0,65232.0,0.0020308]
[1718848242176,2.48512896,65233.0,65232.0,0.0020308]
[1718848242564,1.72020496,65233.0,65232.0,0.0020308]
[1718848243169,1.70620496,65233.0,65232.0,0.0020308]
[1718848243376,0.72453196,65233.0,65232.0,0.0020308]
[1718848243583,0.65253196,65233.0,65232.0,0.0020308]
[1718848243777,0.94512496,65233.0,65232.0,0.0020308]
[1718848243982,0.93112496,65233.0,65232.0,0.0020308]
[1718848244190,0.94512496,65233.0,65232.0,0.0020308]
[1718848244945,1.04512496,65233.0,65232.0,0.0020308]
[1718848245353,1.20557396,65233.0,65232.0,0.0020308]
[1718848245572,1.04512496,65233.0,65232.0,0.0020308]
[1718848246215,1.07036783,65233.0,65232.0,0.0020308]
[1718848246405,0.76377483,65233.0,65232.0,0.00249861]
[1718848246833,0.77777483,65233.0,65232.0,0.0020308]
[1718848247044,0.77777483,65233.0,65232.0,0.00249861]
[1718848247235,0.77777483,65233.0,65232.0,0.0020308]
[1718848247484,0.77777483,65233.0,65232.0,0.00249861]
[1718848247623,0.16532471,65233.0,65232.0,0.00249861]
[1718848248019,0.31862071,65233.0,65232.0,0.00249861]
[1718848249382,0.62521371,65233.0,65232.0,0.0020308]
[1718848249589,0.61913187,65233.0,65232.0,0.0020308]
[1718848249792,0.62546042,65233.0,65232.0,0.0020308]
[1718848250386,1.08461454,65233.0,65232.0,0.0020308]
[1718848250586,1.39120754,65233.0,65232.0,0.0020308]
[1718848251268,1.39119737,65233.0,65232.0,0.0020308]
[1718848254827,0.31885725,65233.0,65232.0,0.0020308]
[1718848255142,0.31885725,65233.0,65232.0,0.1314308]
[1718848255344,0.62545025,65233.0,65232.0,0.1314308]
[1718848256164,0.61145025,65233.0,65232.0,0.13189861]
[1718848256365,0.61145025,65233.0,65232.0,0.1314308]
[1718848256786,0.59745025,65233.0,65232.0,0.1314308]
[1718848256978,0.61145025,65233.0,65232.0,0.1314308]
[1718848257181,0.60020738,65233.0,65232.0,0.28879861]
[1718848258084,0.29361438,65233.0,65232.0,0.28879861]
[1718848258377,0.13431838,65233.0,65232.0,0.28879861]
[1718848258578,0.28761438,65233.0,65232.0,0.28879861]
[1718848260079,0.28761438,65233.0,65232.0,0.2883308]
[1718848260509,0.29361438,65233.0,65232.0,0.2883308]
[1718848260682,0.29361438,65233.0,65232.0,0.28879861]
[1718848261490,0.60020738,65233.0,65232.0,0.0020308]
[1718848261744,1.3659545,65233.0,65232.0,0.0020308]
[1718848263341,1.6825475,65233.0,65232.0,0.0020308]
[1718848263543,2.90101083,65233.0,65232.0,0.0020308]
[1718848263978,2.89101083,65233.0,65232.0,0.0020308]
[1718848264156,2.28437683,65233.0,65232.0,0.0020308]
[1718848264413,2.21517683,65233.0,65232.0,0.0020308]
[1718848265045,1.39086583,65233.0,65232.0,0.0020308]
[1718848265246,1.3659545,65233.0,65232.0,0.0020308]
[1718848267000,1.6741475,65233.0,65232.0,0.0020308]
[1718848267351,1.5096375,65233.0,65232.0,0.0020308]
[1718848267624,1.3659545,65233.0,65232.0,0.0020308]
[1718848268063,1.3668145,65233.0,65232.0,0.0020308]
[1718848269250,0.60106738,65233.0,65232.0,0.00249861]
[1718848270334,0.29447438,65233.0,65232.0,0.00249861]
[1718848270657,0.14117838,65233.0,65232.0,0.00249861]
[1718848271194,0.14117838,65233.0,65232.0,0.15387861]
[1718848271835,0.14117838,65233.0,65232.0,0.28377861]
[1718848272020,0.12717838,65233.0,65232.0,0.28377861]
[1718848272233,0.02717838,65233.0,65232.0,0.28377861]
[1718848272687,0.01317838,65233.0,65232.0,0.28377861]
[1718848272888,0.02117838,65233.0,65232.0,0.28377861]
[1718848274362,0.02717838,65233.0,65232.0,0.28377861]
[1718848275968,0.48706738,65233.0,65232.0,0.28377861]
[1718848276170,0.5863345,65233.0,65225.0,0.22553612]
[1718848276402,0.306613,65229.0,65225.0,0.22553612]
[1718848276598,0.31293438,65228.0,65225.0,0.22553612]
[1718848276799,0.15963038,65227.0,65225.0,0.22553612]
[1718848277001,0.00631838,65226.0,65225.0,0.22553612]
[1718848277200,0.77288338,65226.0,65225.0,0.22553612]
[1718848277444,1.3320705,65226.0,65225.0,0.22553612]
[1718848277614,1.0254445,65226.0,65225.0,0.22553612]
[1718848278091,1.0324645,65226.0,65225.0,0.22553612]
[1718848279533,1.0404645,65226.0,65225.0,0.22553612]
[1718848279940,1.0344645,65226.0,65225.0,0.22553612]
[1718848280241,1.0324645,65226.0,65225.0,0.22553612]
[1718848280544,1.4811905,65226.0,65225.0,0.22553612]
[1718848281167,1.4781905,65226.0,65225.0,0.22553612]
[1718848281933,1.4861905,65226.0,65225.0,0.22553612]
[1718848282336,1.4911905,65226.0,65225.0,0.22553612]
[1718848282737,1.4861905,65226.0,65225.0,0.22553612]
[1718848283683,1.4781905,65226.0,65225.0,0.22553612]
[1718848284478,1.3390905,65226.0,65225.0,0.22553612]
[1718848284835,1.0324645,65226.0,65225.0,0.22553612]
[1718848285054,1.0424645,65226.0,65225.0,0.22553612]
[1718848286071,0.11333838,65226.0,65225.0,0.52833612]
[1718848286311,0.02533838,65226.0,65225.0,0.52833612]
[1718848286751,0.02533838,65226.0,65225.0,0.22553612]
[1718848286752,0.4845255,65226.0,65225.0,0.22553612]
[1718848286938,1.3510905,65226.0,65225.0,0.22553612]
[1718848287112,0.58527738,65226.0,65225.0,0.22553612]
[1718848287318,0.57825738,65226.0,65225.0,0.22553612]
[1718848287550,0.57825738,65226.0,65225.0,0.36133612]
[1718848288128,0.57825738,65226.0,65225.0,0.22553612]
[1718848288348,1.0374445,65226.0,65225.0,0.22553612]
[1718848288544,1.6607905,65226.0,65225.0,0.22553612]
[1718848288791,2.35365534,65226.0,65225.0,0.22553612]
[1718848288933,2.15025534,65226.0,65225.0,0.22553612]
[1718848289137,2.17025534,65226.0,65225.0,0.22553612]
[1718848289352,2.15025534,65226.0,65225.0,0.22553612]
[1718848289553,2.45688134,65226.0,65225.0,0.22553612]
[1718848289826,2.47688134,65226.0,65225.0,0.22553612]
[1718848289937,2.47552689,65226.0,65225.0,0.22553612]
[1718848290143,2.16790089,65226.0,65225.0,0.22553612]
[1718848290592,2.47452689,65226.0,65225.0,0.22553612]
[1718848290801,2.36150189,65226.0,65225.0,0.22553612]
[1718848291004,2.35050189,65226.0,65225.0,0.22553612]
[1718848291208,2.28885789,65226.0,65225.0,0.22553612]
[1718848291473,1.87081289,65226.0,65225.0,0.22553612]
[1718848291800,1.25348689,65226.0,65225.0,0.22553612]
[1718848291927,1.03980296,65226.0,65225.0,0.22553612]
[1718848292359,1.05380296,65226.0,65225.0,0.22553612]
[1718848293580,1.03980296,65226.0,65225.0,0.22553612]
[1718848295252,1.05028174,65226.0,65225.0,0.22553612]
[1718848296641,1.37690774,65226.0,65225.0,0.22553612]
[1718848296837,3.20591874,65226.0,65225.0,0.21972251]
[1718848297011,3.20591874,65226.0,65225.0,0.14935712]
[1718848297012,3.44625032,65226.0,65225.0,0.14935712]
[1718848297230,3.25744952,65226.0,65225.0,0.14935712]
[1718848297614,3.39537411,65226.0,65225.0,0.14935712]
[1718848297817,3.37737411,65226.0,65225.0,0.14935712]
[1718848298016,3.42822838,65226.0,65225.0,0.14935712]
[1718848298261,3.39137411,65226.0,65225.0,0.14935712]
[1718848298464,3.44222838,65226.0,65225.0,0.14935712]
[1718848298690,3.45622838,65226.0,65225.0,0.14935712]
[1718848299187,3.30430379,65226.0,65225.0,0.14769852]
[1718848299639,3.29030379,65226.0,65225.0,0.14769852]
[1718848300211,3.30430379,65226.0,65225.0,0.14769852]
[1718848300455,3.30430379,65226.0,65225.0,0.13069852]
[1718848300635,3.31830379,65226.0,65225.0,0.13164452]
[1718848300956,3.31916379,65226.0,65225.0,0.13164452]
[1718848301301,3.31830952,65226.0,65225.0,0.13164452]
[1718848301665,3.36916379,65226.0,65225.0,0.06565832]
[1718848301888,3.36916379,65226.0,65225.0,0.04908962]
[1718848302078,3.36916379,65226.0,65225.0,0.0455654]
[1718848302486,3.49300813,65226.0,65225.0,0.0455654]
[1718848303414,3.44215386,65226.0,65225.0,0.0455654]
[1718848303554,3.42815386,65226.0,65225.0,0.0455654]
[1718848303755,3.44215386,65226.0,65225.0,0.0455654]
[1718848303958,3.31830952,65226.0,65225.0,0.0455654]
[1718848304195,3.30430952,65226.0,65225.0,0.0455654]
[1718848304412,3.29030952,65226.0,65225.0,0.0455654]
[1718848304613,3.26830952,65226.0,65225.0,0.0455654]
[1718848304783,3.23430952,65226.0,65225.0,0.0455654]
[1718848305186,3.30430952,65226.0,65225.0,0.0455654]
[1718848305381,3.30430952,65226.0,65225.0,0.04134142]
[1718848305382,3.31784838,65226.0,65225.0,0.04134142]
[1718848305646,3.36870265,65226.0,65225.0,0.04134142]
[1718848305895,3.39670265,65226.0,65225.0,0.04134142]
[1718848306074,0.1935464,65226.0,65225.0,0.34074142]
[1718848306214,0.04201562,65226.0,65225.0,0.84368642]
[1718848306416,0.04201562,65226.0,65225.0,0.53705642]
[1718848306837,0.04201562,65226.0,65225.0,0.84368642]
[1718848307036,0.03499562,65226.0,65225.0,0.84368642]
[1718848307235,0.02099562,65226.0,65225.0,0.84368642]
[1718848307879,0.00699562,65226.0,65225.0,0.84368642]
[1718848308279,0.00799562,65226.0,65225.0,0.84368642]
[1718848308483,0.02199562,65226.0,65225.0,0.84368642]
[1718848308889,0.00799562,65226.0,65225.0,0.84368642]
[1718848309090,0.00699562,65226.0,65225.0,0.84368642]
[1718848309346,0.00699562,65226.0,65225.0,1.15031642]
[1718848309698,0.00699562,65226.0,65225.0,0.84368642]
[1718848310283,0.00799562,65226.0,65225.0,0.84468642]
[1718848310484,0.00799562,65226.0,65225.0,1.61050754]
[1718848310882,0.00699562,65226.0,65225.0,1.60950754]
[1718848311083,0.00799562,65226.0,65225.0,1.60950754]
[1718848311287,0.00799562,65226.0,65225.0,1.13131642]
[1718848311492,0.00799562,65226.0,65225.0,0.84468642]
[1718848311693,0.00799562,65226.0,65225.0,0.83468642]
[1718848311694,0.00899562,65226.0,65225.0,0.83468642]
[1718848311897,0.00799562,65226.0,65225.0,1.14031642]
[1718848312095,0.00899562,65226.0,65225.0,1.15131642]
[1718848312723,0.00799562,65226.0,65225.0,1.15131642]
[1718848313541,0.00699562,65226.0,65225.0,1.15031642]
[1718848313948,0.00699562,65226.0,65225.0,1.45287754]
[1718848313949,0.00799562,65226.0,65225.0,1.45287754]
[1718848314150,0.00799562,65226.0,65225.0,1.55487754]
[1718848314357,0.00086,65233.0,65232.0,1.383689]
[1718848314575,0.00086,65233.0,65232.0,1.78453184]
[1718848315666,0.00086,65233.0,65232.0,1.78553184]
[1718848315667,0.00186,65233.0,65232.0,1.78553184]
[1718848316459,0.00286,65233.0,65232.0,1.78553184]
[1718848317117,0.00186,65233.0,65232.0,1.78453184]
[1718848317483,0.00286,65233.0,65232.0,1.78653184]
[1718848317933,0.00286,65233.0,65232.0,0.151]
[1718848318172,0.00086,65233.0,65225.0,0.19465542]
[1718848318385,0.00286,65233.0,65232.0,0.003]
[1718848318886,0.155156,65233.0,65232.0,0.003]
[1718848319091,0.154156,65233.0,65225.0,0.04134142]
[1718848319298,0.153299,65232.0,65225.0,0.04134142]
[1718848319528,0.00734,65233.0,65225.0,0.04134142]
[1718848319732,0.153311,65227.0,65225.0,0.04134142]
[1718848320522,0.153306,65229.0,65225.0,0.04334142]
[1718848320908,0.306609,65230.0,65225.0,0.04334142]
[1718848321109,0.308453,65233.0,65225.0,0.04334142]
[1718848321110,0.459939,65226.0,65225.0,0.04134142]
[1718848321334,0.766565,65226.0,65225.0,0.04334142]
[1718848321532,0.773585,65226.0,65225.0,0.04334142]
[1718848321971,0.773585,65226.0,65225.0,0.04134142]
[1718848322505,0.773585,65226.0,65225.0,0.04334142]
[1718848322841,0.00702,65226.0,65225.0,0.04334142]
[1718848323500,0.00802,65226.0,65225.0,0.04334142]
[1718848323704,0.001,65226.0,65225.0,0.04334142]
[1718848323852,0.001,65226.0,65225.0,0.04134142]
[1718848324260,0.00677733,65226.0,65225.0,0.64455642]
[1718848324633,0.00677733,65226.0,65225.0,0.53424142]
[1718848325266,0.00677718,65226.0,65225.0,0.53424142]
[1718848325616,0.00677718,65226.0,65225.0,0.68755642]
[1718848326312,0.00677718,65226.0,65225.0,0.99418642]
[1718848326533,0.00677718,65226.0,65225.0,1.30081642]
[1718848326739,0.002,65226.0,65225.0,1.30081642]
[1718848327324,0.00677713,65226.0,65225.0,1.30081642]
[1718848327525,0.002,65226.0,65225.0,1.30081642]
[1718848327729,0.002,65226.0,65225.0,1.28081642]
[1718848327935,0.002,65226.0,65225.0,1.30081642]
[1718848328142,0.002,65226.0,65225.0,0.36524142]
[1718848328771,0.00677714,65226.0,65225.0,0.36524142]
[1718848328972,0.00677714,65226.0,65225.0,0.04334142]
[1718848329811,0.1741,65235.0,65225.0,0.04334142]
[1718848329812,0.04741075,65245.0,65239.0,0.02]
[1718848329987,0.153264,65247.0,65244.0,0.149]
[1718848330259,0.306522,65249.0,65244.0,0.149]
[1718848330260,0.306488,65256.0,65244.0,0.149]
[1718848330439,0.153255,65251.0,65244.0,0.149]
[1718848330847,0.15256112,65255.0,65244.0,0.149]
[1718848331142,0.30647,65260.0,65244.0,0.149]
[1718848331335,0.153255,65251.0,65244.0,0.149]
[1718848331514,0.014,65245.0,65244.0,0.149]
[1718848332520,0.306485,65256.0,65244.0,0.149]
[1718848332521,0.153252,65252.0,65244.0,0.149]
[1718848332963,0.153252,65252.0,65244.0,0.31944]
[1718848333172,0.3065,65253.0,65244.0,0.31944]
[1718848333569,0.153253,65252.0,65244.0,0.31644]
[1718848333889,0.02,65258.0,65244.0,0.00324]